bitfinex/quotes_SOLUSD_20241126
["timestamp","ask_amount","ask_price","bid_price","bid_amount"]
[1732588384982,15.2652,238.46,238.45,60.50110852]
[1732588385304,3.7264,238.46,238.45,60.50110852]
[1732588385600,7.24017254,238.51,238.5,24.027864]
[1732588385815,7.24017254,238.51,238.5,36.33516287]
[1732588387183,7.24017254,238.51,238.5,36.08418287]
[1732588388518,7.24017254,238.51,238.5,36.33516287]
[1732588390814,7.24017254,238.51,238.5,36.08418287]
[1732588391818,7.24017254,238.51,238.5,36.33516287]
[1732588392121,10.46151965,238.57,238.54,0.12549]
[1732588392290,10.46151965,238.57,238.56,31.89138287]
[1732588392485,40.46151965,238.57,238.56,31.89138287]
[1732588392691,40.46151965,238.57,238.54,31.89138287]
[1732588393390,40.46151965,238.57,238.54,23.776884]
[1732588393622,40.46151965,238.57,238.55,4.1919]
[1732588395727,40.46151965,238.57,238.55,24.1919]
[1732588399219,40.46151965,238.57,238.53,4.1923]
[1732588401119,40.46151965,238.57,238.51,4.1926]
[1732588403732,40.46151965,238.57,238.48,10.4837]
[1732588403733,8.11449887,238.56,238.48,10.4837]
[1732588403942,30.0,238.52,238.49,4.1929]
[1732588406212,8.11449887,238.5,238.44,23.776884]
[1732588406433,30.0,238.47,238.44,23.776884]
[1732588406622,30.0,238.47,238.45,24.90502687]
[1732588407142,30.0,238.47,238.46,27.970384]
[1732588407738,30.0,238.47,238.46,28.221364]
[1732588408731,16.9958,238.63,238.5,0.12549]
[1732588408925,16.9958,238.63,238.56,8.11449887]
[1732588409237,16.9958,238.63,238.5,24.027864]
[1732588409238,8.11449887,238.62,238.55,23.776884]
[1732588409417,16.9958,238.63,238.55,23.776884]
[1732588409841,16.9958,238.63,238.58,20.0]
[1732588410447,8.11449887,238.62,238.55,23.776884]
[1732588410744,8.11449887,238.62,238.59,4.1912]
[1732588411740,16.9958,238.63,238.57,4.1916]
[1732588412645,8.11449887,238.64,238.57,4.1916]
[1732588413445,8.11449887,238.62,238.57,4.1916]
[1732588415723,8.11449887,238.66,238.58,23.776884]
[1732588416141,8.11449887,238.66,238.59,4.1912]
[1732588418858,8.11449887,238.66,238.6,23.776884]
[1732588419331,8.11449887,238.72,238.64,8.11449887]
[1732588419523,8.11449887,238.72,238.65,23.776884]
[1732588420433,8.11449887,238.72,238.66,4.19]
[1732588422341,8.11449887,238.69,238.66,4.19]
[1732588423054,8.11449887,238.67,238.62,4.1907]
[1732588423738,8.11449887,238.67,238.6,14.6688]
[1732588424448,8.11449887,238.69,238.64,20.0]
[1732588425331,8.11449887,238.71,238.63,28.11449887]
[1732588426067,8.11449887,238.69,238.64,4.1904]
[1732588426239,8.11449887,238.67,238.64,4.1904]
[1732588426552,8.11449887,238.69,238.64,4.1904]
[1732588427453,8.11449887,238.67,238.62,4.1907]
[1732588429538,8.11449887,238.69,238.61,8.11449887]
[1732588430737,8.11449887,238.69,238.62,27.967584]
[1732588431434,8.11449887,238.69,238.63,16.778037]
[1732588432739,8.11449887,238.69,238.64,4.1904]
[1732588434053,8.11449887,238.69,238.64,14.6664]
[1732588434773,8.11449887,238.69,238.64,4.1904]
[1732588435953,8.11449887,238.67,238.64,4.1904]
[1732588437877,14.189,238.72,238.64,4.1904]
[1732588437878,8.11449887,238.69,238.64,4.1904]
[1732588438083,20.0,238.74,238.64,4.1904]
[1732588438258,8.11449887,238.72,238.64,4.1904]
[1732588439462,8.11449887,238.74,238.65,31.89138287]
[1732588440982,8.11449887,238.68,238.63,16.778037]
[1732588441187,8.11449887,238.68,238.63,20.968537]
[1732588443757,8.11449887,238.64,238.6,4.1911]
[1732588443972,10.0,238.71,238.6,4.1911]
[1732588444175,8.11449887,238.65,238.61,10.0]
[1732588444380,8.11449887,238.65,238.6,4.1911]
[1732588444560,8.11449887,238.65,238.59,20.0]
[1732588444757,8.11449887,238.63,238.58,16.781576]
[1732588444961,8.11449887,238.61,238.55,4.1919]
[1732588445385,8.11449887,238.61,238.56,16.783224]
[1732588445557,8.11449887,238.61,238.57,4.1916]
[1732588445759,8.11449887,238.59,238.55,4.1918]
[1732588447004,8.11449887,238.59,238.54,10.0]
[1732588447196,8.11449887,238.59,238.53,4.1921]
[1732588447488,8.11449887,238.59,238.53,14.1921]
[1732588449288,8.11449887,238.59,238.56,20.0]
[1732588450205,8.11449887,238.59,238.56,24.1917]
[1732588450579,8.11449887,238.59,238.56,20.0]
[1732588450981,8.11449887,238.59,238.56,24.1918]
[1732588451182,8.11449887,238.61,238.56,24.1918]
[1732588453688,8.11449887,238.61,238.58,20.0]
[1732588454403,8.11449887,238.61,238.56,24.1918]
[1732588458609,11.68066102,238.69,238.56,24.1918]
[1732588458790,8.11449887,238.65,238.6,20.0]
[1732588458992,8.11449887,238.65,238.57,8.11449887]
[1732588459211,8.11449887,238.65,238.56,14.6713]
[1732588459521,8.11449887,238.65,238.59,20.0]
[1732588460304,8.11449887,238.65,238.59,24.1911]
[1732588460809,8.11449887,238.62,238.59,24.1911]
[1732588461398,8.11449887,238.62,238.56,14.6713]
[1732588461807,8.11449887,238.64,238.56,14.6713]
[1732588462318,8.11449887,238.62,238.56,4.1918]
[1732588463303,8.11449887,238.62,238.54,4.1921]
[1732588463918,8.11449887,238.62,238.55,8.11449887]
[1732588465521,8.11449887,238.62,238.56,4.1918]
[1732588470700,30.0,238.57,238.56,4.1918]
[1732588471529,30.0,238.57,238.51,4.1926]
[1732588471729,30.0,238.57,238.51,12.30709887]
[1732588480512,30.0,238.57,238.53,8.11449887]
[1732588481117,30.0,238.57,238.55,8.11449887]
[1732588482307,30.0,238.57,238.56,23.776884]
[1732588482721,30.0,238.57,238.56,27.968684]
[1732588483400,30.0,238.57,238.56,28.094174]
[1732588483617,30.0,238.57,238.56,28.219664]
[1732588484414,30.0,238.57,238.56,27.968684]
[1732588485503,30.0,238.57,238.56,4.1918]
[1732588491403,30.0,238.57,238.56,27.968684]
[1732588493729,30.0,238.57,238.56,4.1918]
[1732588493932,30.0,238.57,238.56,27.968684]
[1732588496034,30.0,238.57,238.56,4.1918]
[1732588498021,30.0,238.57,238.5,10.4819]
[1732588498330,30.0,238.57,238.56,8.11449887]
[1732588500746,30.0,238.57,238.56,12.30629887]
[1732588504926,30.0,238.57,238.56,4.1918]
[1732588505324,30.0,238.57,238.51,8.11449887]
[1732588506349,30.0,238.57,238.52,4.1925]
[1732588507344,30.0,238.57,238.53,8.11449887]
[1732588507871,30.0,238.57,238.54,4.1921]
[1732588508150,30.0,238.57,238.55,8.11449887]
[1732588508530,30.0,238.57,238.54,4.1921]
[1732588509257,30.0,238.57,238.55,8.11449887]
[1732588510028,30.0,238.57,238.56,4.1918]
[1732588517160,30.0,238.57,238.48,20.9655]
[1732588517451,30.0,238.57,238.55,28.11449887]
[1732588517627,30.0,238.57,238.55,8.11449887]
[1732588519233,30.0,238.57,238.56,4.1918]
[1732588519634,30.0,238.57,238.56,27.968684]
[1732588521061,28.0,238.57,238.56,27.968684]
[1732588521260,28.0,238.57,238.56,4.1918]
[1732588521927,28.0,238.57,238.44,50.86797533]
[1732588522130,28.0,238.57,238.51,8.11449887]
[1732588522930,28.0,238.57,238.53,8.11449887]
[1732588523659,28.0,238.57,238.54,4.1921]
[1732588525848,28.0,238.57,238.55,8.11449887]
[1732588527445,28.0,238.57,238.56,23.776884]
[1732588527840,28.0,238.57,238.56,27.968684]
[1732588528374,28.0,238.57,238.56,60.42667948]
[1732588528656,28.0,238.57,238.56,27.968684]
[1732588529042,28.0,238.57,238.56,60.42667948]
[1732588529368,28.0,238.57,238.56,27.968684]
[1732588530066,28.0,238.57,238.56,60.42667948]
[1732588530249,28.0,238.57,238.56,60.67765948]
[1732588530454,17.8904,238.7,238.59,20.0]
[1732588530638,17.8904,238.7,238.66,8.11449887]
[1732588531248,7.7735,238.74,238.66,8.11449887]
[1732588531867,7.7735,238.74,238.67,4.1898]
[1732588534550,26.70159887,238.75,238.67,4.1898]
[1732588535448,26.70159887,238.75,238.67,12.30429887]
[1732588540360,8.11449887,238.73,238.67,4.1898]
[1732588540671,7.24395786,238.73,238.67,12.30429887]
[1732588547100,7.24395786,238.73,238.69,8.11449887]
[1732588548282,7.24395786,238.73,238.7,4.1893]
[1732588551586,7.24395786,238.73,238.67,8.11449887]
[1732588553068,7.24395786,238.73,238.68,4.1897]
[1732588555977,7.24395786,238.73,238.69,8.11449887]
[1732588556597,7.24395786,238.73,238.65,10.4755]
[1732588556791,7.24395786,238.73,238.68,8.11449887]
[1732588557188,7.24395786,238.73,238.65,10.4755]
[1732588557189,7.24395786,238.73,238.7,8.11449887]
[1732588557377,7.24395786,238.73,238.72,31.89138287]
[1732588558489,7.24395786,238.73,238.72,32.14236287]
[1732588558687,7.24395786,238.73,238.72,36.33136287]
[1732588559391,7.24395786,238.73,238.72,36.08038287]
[1732588560792,7.24395786,238.73,238.72,27.965884]
[1732588561889,7.24395786,238.73,238.72,36.08038287]
[1732588565782,7.24395786,238.73,238.72,36.33136287]
[1732588567975,7.24395786,238.73,238.72,36.08038287]
[1732588570395,8.11449887,238.82,238.73,23.776884]
[1732588570586,8.11449887,238.82,238.74,8.11449887]
[1732588571385,4.1869,238.84,238.74,8.11449887]
[1732588571711,0.4874292,238.85,238.8,8.11449887]
[1732588571925,0.4874292,238.85,238.81,4.1874]
[1732588572583,8.11449887,238.83,238.77,4.1881]
[1732588574098,0.4874292,238.85,238.77,4.1881]
[1732588574099,8.60192807,238.85,238.77,4.1881]
[1732588575514,8.60192807,238.85,238.78,31.89138287]
[1732588576301,8.60192807,238.85,238.79,4.1877]
[1732588579312,0.4874292,238.85,238.82,8.11449887]
[1732588579718,0.4874292,238.85,238.8,24.027864]
[1732588580014,0.4874292,238.85,238.84,23.776884]
[1732588581093,0.4874292,238.85,238.84,27.963784]
[1732588581602,0.4874292,238.85,238.84,28.214764]
[1732588582291,88.6299078,239.0,238.85,0.12549]
[1732588582491,88.6299078,239.0,238.93,8.11449887]
[1732588582902,88.6299078,239.0,238.84,85.762374]
[1732588582903,8.11449887,238.99,238.91,8.11449887]
[1732588583109,8.11449887,238.99,238.93,4.1853]
[1732588584599,88.6299078,239.0,238.93,12.29979887]
[1732588584800,88.6299078,239.0,238.93,4.1853]
[1732588584801,96.74440667,239.0,238.93,4.1853]
[1732588585011,96.74440667,239.0,238.95,4.1849]
[1732588585221,96.74440667,239.0,238.96,23.776884]
[1732588585397,88.6299078,239.0,238.96,23.776884]
[1732588586126,88.6299078,239.0,238.96,31.89138287]
[1732588586304,88.6299078,239.0,238.95,4.1849]
[1732588586305,88.6299078,239.0,238.99,23.776884]
[1732588587316,88.6299078,239.0,238.99,27.961084]
[1732588587723,88.6299078,239.0,238.99,36.32656287]
[1732588588015,68.6670078,239.0,238.99,36.32656287]
[1732588589404,68.6670078,239.0,238.99,28.212064]
[1732588589604,68.6670078,239.0,238.99,36.32656287]
[1732588590604,68.6670078,239.0,238.99,53.07549487]
[1732588591798,12.83740258,239.0,238.99,59.06334467]
[1732588592418,0.4926434,239.09,239.04,18.9461]
[1732588592610,0.4926434,239.09,239.08,52.14236287]
[1732588592795,0.4926434,239.09,239.08,43.776884]
[1732588593113,0.4926434,239.09,239.08,51.89138287]
[1732588593287,0.4926434,239.09,239.08,52.14236287]
[1732588593493,0.4926434,239.09,239.08,56.32506287]
[1732588594301,0.4926434,239.09,239.08,56.07408287]
[1732588595125,0.4926434,239.09,239.08,47.959584]
[1732588595321,0.4926434,239.09,239.08,48.210564]
[1732588596826,0.4926434,239.09,239.08,54.61730269]
[1732588598826,8.11449887,239.25,239.14,23.776884]
[1732588599013,10.0,239.26,239.16,8.11449887]
[1732588599318,8.11449887,239.25,239.16,8.11449887]
[1732588600109,8.11449887,239.23,239.17,4.1811]
[1732588600308,10.0,239.26,239.13,20.25098]
[1732588600309,8.11449887,239.21,239.15,4.1814]
[1732588600704,8.11449887,239.23,239.16,8.11449887]
[1732588600909,19.2832,239.25,239.18,8.11449887]
[1732588601141,27.39769887,239.25,239.18,8.11449887]
[1732588601307,19.2832,239.25,239.18,8.11449887]
[1732588602634,19.2832,239.25,239.18,12.29529887]
[1732588603303,27.39769887,239.25,239.18,12.29529887]
[1732588604206,19.2832,239.25,239.18,12.29529887]
[1732588604407,27.39769887,239.25,239.18,4.1808]
[1732588605608,27.39769887,239.25,239.18,12.29529887]
[1732588605813,22.2119,239.31,239.2,8.11449887]
[1732588606109,18.0331,239.31,239.22,8.23998887]
[1732588606432,26.14759887,239.31,239.23,23.776884]
[1732588606732,0.4926434,239.33,239.22,8.23998887]
[1732588606733,8.11449887,239.32,239.25,23.776884]
[1732588609127,8.11449887,239.32,239.26,4.1795]
[1732588609428,8.11449887,239.3,239.23,4.18]
[1732588610431,8.11449887,239.3,239.24,23.776884]
[1732588611231,8.11449887,239.28,239.25,4.1797]
[1732588611530,8.11449887,239.28,239.23,4.1799]
[1732588612623,8.11449887,239.26,239.21,23.776884]
[1732588612825,8.11449887,239.26,239.19,23.776884]
[1732588613214,8.11449887,239.26,239.18,23.776884]
[1732588613417,8.11449887,239.24,239.17,14.6337]
[1732588613626,8.11449887,239.24,239.17,4.1811]
[1732588614716,8.11449887,239.24,239.18,0.25098]
[1732588615036,8.11449887,239.29,239.22,23.776884]
[1732588616243,0.4926434,239.33,239.23,4.18]
[1732588616416,8.11449887,239.3,239.24,23.776884]
[1732588617246,8.11449887,239.28,239.24,23.776884]
[1732588617632,8.11449887,239.28,239.25,8.114499]
[1732588617832,8.11449887,239.3,239.25,8.114499]
[1732588618030,8.11449887,239.3,239.26,4.1795]
[1732588618433,8.11449887,239.3,239.27,23.776884]
[1732588619141,8.11449887,239.3,239.26,4.1795]
[1732588619346,8.11449887,239.28,239.25,8.114499]
[1732588619524,8.11449887,239.28,239.21,10.4508]
[1732588619525,8.11449887,239.28,239.22,23.776884]
[1732588619729,8.11449887,239.28,239.22,34.227684]
[1732588620035,8.11449887,239.28,239.22,38.407884]
[1732588620235,0.4926434,239.33,239.22,46.52238287]
[1732588620236,8.11449887,239.3,239.22,46.52238287]
[1732588621535,8.11449887,239.28,239.22,38.407884]
[1732588621738,8.11449887,239.26,239.22,10.4508]
[1732588621945,8.11449887,239.26,239.18,4.1809]
[1732588622334,8.11449887,239.26,239.19,14.670943]
[1732588623244,8.11449887,239.26,239.2,23.776884]
[1732588624743,8.11449887,239.24,239.21,4.1804]
[1732588624936,10.0,239.31,239.19,18.851543]
[1732588625137,8.11449887,239.21,239.18,4.1809]
[1732588625947,8.11449887,239.21,239.18,20.920639]
[1732588627548,8.11449887,239.23,239.18,20.920639]
[1732588629441,8.11449887,239.21,239.16,4.1811]
[1732588629643,8.11449887,239.19,239.17,16.740753]
[1732588629847,8.11449887,239.19,239.13,4.1816]
[1732588630236,8.11449887,239.19,239.15,16.741882]
[1732588630952,8.11449887,239.19,239.15,20.923282]
[1732588631927,8.11449887,239.21,239.15,20.923282]
[1732588633328,8.11449887,239.19,239.15,4.1814]
[1732588633538,8.11449887,239.19,239.15,12.295899]
[1732588634053,8.11449887,239.19,239.15,4.1814]
[1732588634229,8.11449887,239.17,239.1,4.1823]
[1732588634431,8.11449887,239.16,239.1,4.1823]
[1732588634640,8.11449887,239.18,239.1,14.1823]
[1732588634842,8.11449887,239.16,239.1,14.1823]
[1732588636158,8.11449887,239.13,239.1,4.1823]
[1732588636329,12.60760649,239.13,239.1,4.1823]
[1732588636649,12.60760649,239.15,239.1,4.1823]
[1732588637051,12.60760649,239.15,239.09,27.959384]
[1732588637642,12.60760649,239.15,239.09,4.1825]
[1732588639729,12.60760649,239.13,239.09,4.1825]
[1732588640739,12.60760649,239.13,239.05,12.60760649]
[1732588640740,12.60760649,239.13,239.08,4.1827]
[1732588641454,12.60760649,239.15,239.08,4.1827]
[1732588641661,19.7143,239.21,239.08,4.1827]
[1732588641662,12.60760649,239.17,239.09,12.60760649]
[1732588642653,12.60760649,239.17,239.1,4.1823]
[1732588643230,12.60760649,239.15,239.1,4.1823]
[1732588643630,20.0,239.18,239.1,4.1823]
[1732588643831,12.60760649,239.16,239.1,4.1823]
[1732588644451,12.60760649,239.16,239.08,4.1827]
[1732588645254,20.0,239.18,239.08,4.1827]
[1732588645255,12.60760649,239.12,239.08,4.1827]
[1732588645560,20.0,239.18,239.08,4.1827]
[1732588645561,12.60760649,239.14,239.08,4.1827]
[1732588646459,12.60760649,239.14,239.06,4.183]
[1732588647858,12.60760649,239.14,239.07,12.60760649]
[1732588648429,12.60760649,239.16,239.07,12.60760649]
[1732588648629,12.60760649,239.14,239.07,12.60760649]
[1732588649346,12.60760649,239.16,239.09,12.60760649]
[1732588649552,12.60760649,239.18,239.11,12.60760649]
[1732588650252,12.60760649,239.16,239.08,12.60760649]
[1732588651654,12.60760649,239.16,239.09,4.1825]
[1732588653445,12.60760649,239.18,239.1,12.60760649]
[1732588654434,12.60760649,239.18,239.11,4.1821]
[1732588654743,12.60760649,239.22,239.14,12.60760649]
[1732588654936,12.60760649,239.22,239.16,12.60760649]
[1732588655564,19.80280283,239.23,239.16,12.60760649]
[1732588655862,19.80280283,239.23,239.16,16.78880649]
[1732588656455,15.25849392,239.23,239.16,4.1812]
[1732588663239,7.19519634,239.23,239.16,4.1812]
[1732588664444,7.19519634,239.23,239.18,4.1809]
[1732588666546,7.19519634,239.23,239.19,8.06329758]
[1732588667058,7.19519634,239.23,239.18,4.1809]
[1732588667846,7.19519634,239.23,239.18,4.00099]
[1732588671045,7.19519634,239.23,239.18,3.4615]
[1732588673571,7.19519634,239.23,239.18,3.19209]
[1732588676345,8.06329758,239.21,239.14,4.1816]
[1732588677249,15.25849392,239.23,239.14,4.1816]
[1732588677448,8.06329758,239.21,239.14,4.1816]
[1732588678249,15.25849392,239.23,239.16,4.1813]
[1732588680368,8.06329758,239.21,239.14,4.1815]
[1732588681373,8.06329758,239.17,239.12,4.1819]
[1732588682254,8.06329758,239.17,239.1,8.06329758]
[1732588683465,8.06329758,239.17,239.11,4.1821]
[1732588684359,8.06329758,239.19,239.11,4.1821]
[1732588685868,8.06329758,239.17,239.11,4.1821]
[1732588686282,4.1802,239.22,239.07,10.4569]
[1732588686283,8.06329758,239.15,239.09,4.1825]
[1732588687355,8.06329758,239.13,239.07,10.4569]
[1732588687676,8.06329758,239.13,239.06,4.183]
[1732588687868,8.06329758,239.12,239.06,4.183]
[1732588688459,8.06329758,239.13,239.06,4.183]
[1732588688863,8.06329758,239.14,239.06,12.24629758]
[1732588689265,8.06329758,239.13,239.06,12.24629758]
[1732588689668,8.06329758,239.11,239.06,4.183]
[1732588690471,8.06329758,239.12,239.06,4.183]
[1732588690885,8.06329758,239.11,239.06,4.183]
[1732588691379,8.06329758,239.09,239.04,4.1832]
[1732588691679,8.06329758,239.1,239.04,4.1832]
[1732588693186,8.06329758,239.11,239.04,4.1832]
[1732588693374,8.06329758,239.12,239.04,12.24649758]
[1732588693678,8.06329758,239.11,239.04,4.1832]
[1732588693881,8.06329758,239.12,239.05,8.06329758]
[1732588694068,38.7933,239.23,239.08,8.06329758]
[1732588694383,8.06329758,239.18,239.1,8.06329758]
[1732588694764,8.06329758,239.2,239.12,8.06329758]
[1732588694964,8.06329758,239.2,239.11,4.1821]
[1732588695164,8.06329758,239.18,239.11,12.24539758]
[1732588697274,8.06329758,239.18,239.11,4.1821]
[1732588699066,8.06329758,239.17,239.1,12.24559758]
[1732588700888,8.06329758,239.17,239.08,8.06329758]
[1732588701182,8.06329758,239.15,239.06,8.06329758]
[1732588701868,8.06329758,239.15,239.08,8.06329758]
[1732588702207,8.06329758,239.15,239.09,4.1825]
[1732588704265,8.06329758,239.17,239.09,12.24579758]
[1732588707099,8.06329758,239.16,239.09,12.24579758]
[1732588707789,28.06329758,239.18,239.09,12.24579758]
[1732588711297,20.0,239.2,239.09,12.24579758]
[1732588711470,8.06329758,239.18,239.09,12.24579758]
[1732588712564,16.1,239.1,239.09,12.24579758]
[1732588718699,16.1,239.1,239.09,54.65146158]
[1732588719499,4.1788,239.3,239.14,20.0]
[1732588719705,8.06329758,239.28,239.19,8.06329758]
[1732588719879,30.0,239.2,239.19,8.06329758]
[1732588720374,30.0,239.2,239.19,57.71797158]
[1732588720788,30.0,239.2,239.19,61.89867158]
[1732588720991,30.0,239.2,239.19,61.77318158]
[1732588721301,30.0,239.2,239.19,68.02660992]
[1732588721507,7.192551,239.31,239.2,23.902374]
[1732588721702,7.192551,239.31,239.27,8.06329758]
[1732588722500,7.192551,239.31,239.28,4.1792]
[1732588722684,7.192551,239.31,239.27,8.06329758]
[1732588723415,7.192551,239.31,239.26,4.1794]
[1732588725510,15.25584858,239.31,239.22,23.776884]
[1732588725698,15.25584858,239.31,239.23,8.06329758]
[1732588726209,8.06329758,239.27,239.21,4.1804]
[1732588727710,7.192551,239.31,239.21,4.1804]
[1732588728005,8.06329758,239.27,239.21,4.1804]
[1732588728683,7.192551,239.31,239.22,8.06329758]
[1732588728886,8.06329758,239.3,239.22,8.06329758]
[1732588729815,8.06329758,239.28,239.21,4.1804]
[1732588732799,8.06329758,239.26,239.21,4.1804]
[1732588734217,8.06329758,239.25,239.21,4.1804]
[1732588735019,8.06329758,239.25,239.19,4.1806]
[1732588735409,8.06329758,239.25,239.18,4.1809]
[1732588736120,8.06329758,239.24,239.18,4.1809]
[1732588738715,8.06329758,239.25,239.18,4.1809]
[1732588739419,8.06329758,239.21,239.15,4.1814]
[1732588739626,42.25319032,239.28,239.15,4.1814]
[1732588739819,8.06329758,239.21,239.15,4.1814]
[1732588740623,8.06329758,239.23,239.16,8.06329758]
[1732588740827,8.06329758,239.22,239.15,12.24469758]
[1732588741710,8.06329758,239.2,239.15,4.1814]
[1732588742606,8.06329758,239.21,239.15,4.1814]
[1732588743906,8.06329758,239.21,239.13,15.40889758]
[1732588744122,8.06329758,239.21,239.14,4.1816]
[1732588744513,8.06329758,239.22,239.15,8.06329758]
[1732588744915,8.06329758,239.21,239.14,12.24489758]
[1732588747020,8.06329758,239.22,239.14,12.24489758]
[1732588748826,8.06329758,239.21,239.14,12.24489758]
[1732588750930,8.06329758,239.21,239.14,4.1816]
[1732588751133,7.192551,239.31,239.2,8.06329758]
[1732588751315,15.25584858,239.31,239.23,8.06329758]
[1732588752021,8.06329758,239.28,239.2,8.06329758]
[1732588752325,8.06329758,239.28,239.19,8.06329758]
[1732588753429,8.06329758,239.28,239.2,4.1806]
[1732588755433,8.06329758,239.3,239.21,8.06329758]
[1732588755737,7.192551,239.31,239.23,8.06329758]
[1732588757539,7.192551,239.31,239.24,4.1799]
[1732588759436,7.192551,239.31,239.25,8.06329758]
[1732588759765,7.192551,239.31,239.27,8.06329758]
[1732588760831,7.192551,239.31,239.28,4.1792]
[1732588762140,0.4926434,239.33,239.29,8.06329758]
[1732588762329,0.4926434,239.33,239.31,8.06329758]
[1732588762719,0.4926434,239.33,239.29,8.06329758]
[1732588762923,0.4926434,239.33,239.3,4.1788]
[1732588764007,0.4926434,239.33,239.28,10.448]
[1732588764335,0.4926434,239.33,239.28,14.6272]
[1732588765413,0.4926434,239.33,239.28,4.1792]
[1732588766827,8.55594098,239.33,239.28,4.1792]
[1732588767521,0.4926434,239.33,239.29,8.06329758]
[1732588768750,0.4926434,239.33,239.3,4.1788]
[1732588769232,0.4926434,239.33,239.31,8.06329758]
[1732588770338,0.4926434,239.33,239.32,4.1785]
[1732588770834,0.4926434,239.33,239.29,4.179]
[1732588771046,8.06329758,239.32,239.24,27.40799758]
[1732588771250,8.06329758,239.32,239.25,4.1797]
[1732588772352,0.4926434,239.33,239.25,4.1797]
[1732588772648,8.55594098,239.33,239.25,4.1797]
[1732588773749,8.06329758,239.32,239.25,4.1797]
[1732588775339,0.4926434,239.33,239.25,4.1797]
[1732588775536,8.06329758,239.32,239.25,4.1797]
[1732588776161,0.4926434,239.33,239.25,4.1797]
[1732588776361,8.55594098,239.33,239.25,14.629]
[1732588776858,0.4926434,239.33,239.32,8.06329758]
[1732588777641,0.4926434,239.33,239.32,15.66239758]
[1732588778066,0.4926434,239.33,239.32,19.84089758]
[1732588779364,0.4926434,239.33,239.32,43.61778158]
[1732588781268,0.4926434,239.33,239.32,43.74327158]
[1732588781470,30.4926434,239.33,239.32,43.74327158]
[1732588781852,30.4926434,239.33,239.32,51.68376158]
[1732588782151,1.00001,239.45,239.4,24.027864]
[1732588782361,1.00001,239.45,239.42,23.776884]
[1732588783342,1.00001,239.45,239.44,8.06329758]
[1732588783556,1.00001,239.45,239.4,23.776884]
[1732588783557,1.00001,239.45,239.42,8.06329758]
[1732588784074,30.0,239.43,239.42,12.23999758]
[1732588791269,30.0,239.43,239.42,36.01688158]
[1732588792341,30.0,239.43,239.42,27.953584]
[1732588792542,30.0,239.43,239.42,12.23999758]
[1732588792764,30.0,239.43,239.42,4.1767]
[1732588792942,30.0,239.43,239.42,12.23999758]
[1732588793145,30.0,239.43,239.42,4.1767]
[1732588796958,30.0,239.43,239.42,8.06329758]
[1732588797302,30.0,239.43,239.42,31.84018158]
[1732588798068,30.0,239.43,239.42,36.01688158]
[1732588799670,30.0,239.43,239.42,12.23999758]
[1732588800663,30.0,239.43,239.42,4.1767]
[1732588801954,30.0,239.43,239.39,8.06329758]
[1732588802349,30.0,239.43,239.34,14.6234]
[1732588802550,38.06329758,239.43,239.35,8.06329758]
[1732588802756,57.10399758,239.43,239.35,8.06329758]
[1732588803651,49.0407,239.43,239.39,8.06329758]
[1732588804284,49.0407,239.43,239.4,4.1771]
[1732588805352,57.10399758,239.43,239.36,4.1778]
[1732588806972,30.0,239.43,239.36,14.6223]
[1732588807155,30.0,239.43,239.37,8.06329758]
[1732588808177,38.06329758,239.43,239.36,4.1778]
[1732588809155,30.0,239.43,239.36,12.24109758]
[1732588809464,30.0,239.43,239.4,8.06329758]
[1732588811078,30.0,239.43,239.41,4.1769]
[1732588811377,30.0,239.43,239.42,20.0]
[1732588812473,30.0,239.43,239.41,4.1769]
[1732588814158,30.0,239.43,239.42,8.06329758]
[1732588814665,30.0,239.43,239.41,4.1769]
[1732588814863,30.0,239.43,239.41,12.24019758]
[1732588817254,30.0,239.43,239.42,8.06329758]
[1732588819156,11.2069,239.43,239.42,8.06329758]
[1732588819356,8.5894,239.43,239.42,8.06329758]
[1732588819877,1.9478,239.43,239.42,8.18878758]
[1732588820076,0.0001,239.43,239.42,32.71738297]
[1732588820381,0.98011,239.45,239.44,20.12549]
[1732588820559,0.98011,239.45,239.44,28.18878758]
[1732588822476,0.98011,239.45,239.44,28.06329758]
[1732588825086,0.98011,239.45,239.44,8.06329758]
[1732588825389,0.98011,239.45,239.43,12.23979758]
[1732588825562,0.98011,239.45,239.43,4.1765]
[1732588827778,0.98011,239.45,239.43,12.23979758]